Workbook

Sheet Pasiūlymas
A1: Perkantysis subjektas, kuriam teikiamas pasiūlymas: | C1: VŠĮ Kauno klinikinė ligoninė
B3: PASIŪLYMAS
B4: Patalynės ir kitų tekstilės gaminių pirkimas
A6: Data: | B6: 2019-12-11
A7: Nr.: | B7: 1211
A8: Vieta: | B8: Panevėžys
A10: Tiekėjo arba tiekėjų grupės narių pavadinimas (-ai) | C10: ARTEKS,UAB
A11: Tiekėjo arba tiekėjo grupės narių juridinio asmens kodas (-ai) (tuo atveju, jei pasiūlymą teikia fizinis asmuo - verslo pažymėjimo Nr. ar pan.) | C11: 148328342
A12: Tiekėjo arba tiekėjo grupės narių PVM mokėtojo kodas (-ai) | C12: LT483283411
A13: Tiekėjų grupės narys, atstovaujantis arba vadovaujantis tiekėjų grupei (pildoma, jei pasiūlymą teikia tiekėjų grupė)
A14: Tiekėjo valdymo ar priežiūros organo narys (-iai) ar kitas asmuo (-ys), turintis (-ys) teisę atstovauti tiekėjui ar jį kontroliuoti, jo vardu priimti sprendimą, sudaryti sandorį
A15: Tiekėjo arba atstovaujančio tiekėjų grupės nario adresas, telefono numeris, fakso numeris, el. paštas | C15: Parko g.77-29,Panevėžys tel/faks +37045527056,mob.+37068536870;arnasra@gmail.com
A16: Tiekėjo arba atstovaujančio tiekėjų grupės nario banko pavadinimas, banko kodas, sąskaitos Nr. | C16: A/s LT267044060002694581 AB SEB bankas,70440
A17: Asmens, įgalioto pasirašyti sutartį, vardas, pavardė, pareigos | C17: Direktorius Arnoldas Raišys
A18: Asmens, atsakingo už pirkimą, vardas, pavardė, telefono numeris, el. paštas | C18: Arnoldas Raišys,+37068536870,arnasra@gmail.com
A24: Siūlomas pirkimo objektas visiškai atitinka pirkimo sąlygose nustatytus reikalavimus ir jo kaina yra:
A28: Nr. | B28: Pavadinimas | C28: Kiekis | D28: Mato vienetas | E28: Kaina be PVM, Eur | F28: Suma be PVM, Eur | G28: Siūlomi produktai
A29: 1. | B29: LOVOS PATALYNĖ
A30: 1.1. | B30: Paklodė ( 2,20x1,50) m | C30: 246 | D30: vnt. | E30: 3.6 | F30: =IF(ISBLANK(E30),"", PRODUCT(C30,E30)) -> 885.6 | G30: Paklodė 2,2x1,5m pasteliškai marga
A31: 1.2. | B31: Paklodė ( 2,20x1,70) m | C31: 267 | D31: vnt. | E31: 3.75 | F31: =IF(ISBLANK(E31),"", PRODUCT(C31,E31)) -> 1001.25 | G31: Paklodė 2,2x1,7m pasteliškai marga
A32: 1.3. | B32: Užvalkalas antklodei ( 2,20x1,50)m | C32: 541 | D32: vnt. | E32: 6.72 | F32: =IF(ISBLANK(E32),"", PRODUCT(C32,E32)) -> 3635.52 | G32: Užvalkalas antklodei 2,2x1,5m pasteliškai margas
A33: 1.4. | B33: Užvalkalas pagalvei ( 0,7x0,7)m | C33: 721 | D33: vnt. | E33: 1.6 | F33: =IF(ISBLANK(E33),"", PRODUCT(C33,E33)) -> 1153.6 | G33: Užvalkalas pagalvei 0,7x0,7m pasteliškai margas
E34: Suma be PVM | F34: =IF((SUMPRODUCT(--(F30:F33=""))>0), "", SUM(F30:F33)) -> 6675.97 | G34: =IF((SUMPRODUCT(--(F30:F33=""))>0), "Neužpildytos visų objektų kainos", "") -> 
E35: PVM suma | F35: 1401.95
E36: Suma su PVM | F36: =IF(ISBLANK(F35), "", SUM(F34:F35)) -> 8077.92
A38: 2. | B38: RANKŠLUOSČIAI
A39: 2.1. | B39: Rankšluostis ( vaflinis) išmatavimai( 0,5 x0,7 )m | C39: 344 | D39: vnt. | F39: =IF(ISBLANK(E39),"", PRODUCT(C39,E39)) -> 
A40: 2.2. | B40: Rankšluostis frote ( 0,5 x 0,7)m | C40: 424 | D40: vnt. | F40: =IF(ISBLANK(E40),"", PRODUCT(C40,E40)) -> 
E41: Suma be PVM | F41: =IF((SUMPRODUCT(--(F39:F40=""))>0), "", SUM(F39:F40)) ->  | G41: =IF((SUMPRODUCT(--(F39:F40=""))>0), "Neužpildytos visų objektų kainos", "") -> Neužpildytos visų objektų kainos
E42: PVM suma
E43: Suma su PVM | F43: =IF(ISBLANK(F42), "", SUM(F41:F42)) -> 
A45: 3. | B45: PUSPAKLODĖS
A46: 3.1. | B46: Puspaklodė (1,0 x 1,5) m | C46: 284 | D46: vnt. | E46: 2.01 | F46: =IF(ISBLANK(E46),"", PRODUCT(C46,E46)) -> 570.84 | G46: Puspaklodė1,0x1,5mpasteliškai marga
A47: 3.2. | B47: Puspaklodė ( 1,7 x 1,05)m | C47: 400 | D47: vnt. | E47: 2.19 | F47: =IF(ISBLANK(E47),"", PRODUCT(C47,E47)) -> 876 | G47: Puspaklodė 1,7x1,05m pasteliškai marga
A48: 3.3. | B48: Puspaklodė ( 0,8 x 1,00)m | C48: 250 | D48: vnt. | E48: 1.38 | F48: =IF(ISBLANK(E48),"", PRODUCT(C48,E48)) -> 345 | G48: Puspaklodė 0,8x1,0 pasteliškai marga
A49: 3.4. | B49: Puspaklodė ( 1,20 x 1,80) m | C49: 50 | D49: vnt. | E49: 2.92 | F49: =IF(ISBLANK(E49),"", PRODUCT(C49,E49)) -> 146 | G49: Puspaklodė 1,2x1,8m pasteliškai marga
E50: Suma be PVM | F50: =IF((SUMPRODUCT(--(F46:F49=""))>0), "", SUM(F46:F49)) -> 1937.84 | G50: =IF((SUMPRODUCT(--(F46:F49=""))>0), "Neužpildytos visų objektų kainos", "") -> 
E51: PVM suma | F51: 406.95
E52: Suma su PVM | F52: =IF(ISBLANK(F51), "", SUM(F50:F51)) -> 2344.79
A54: 4. | B54: OPERACINIAI SKALBINIAI
A55: 4.1. | B55: Paklodė operacinė ( 1,0 x 1,5) m | C55: 2300 | D55: vnt. | E55: 2.46 | F55: =IF(ISBLANK(E55),"", PRODUCT(C55,E55)) -> 5658 | G55: Paklodė oper.žalia 1,0x1,5m
A56: 4.2. | B56: Operacinė pižama ( kelnės + bliuzė) komplektas 52 dydis | C56: 50 | D56: kompl. | E56: 10.5 | F56: 525 | G56: Operac.pižama 52d žalia
A57: 4.3. | B57: Operacinė pižama ( kelnės + bliuzė) komplektas 54 dydis | C57: 100 | D57: kompl. | E57: 10.5 | F57: 1050 | G57: Operac.pižama 54d žalia
A58: 4.4. | B58: Operacinė pižama ( kelnės + bliuzė) komplektas 56 dydis | C58: 100 | D58: kompl. | E58: 10.5 | F58: 1050 | G58: Operac.pižama 56d žalia
A59: 4.5. | B59: Operacinė pižama ( kelnės + bliuzė) komplektas 58 dydis | C59: 200 | D59: kompl. | E59: 10.5 | F59: 2100 | G59: Operac.pižama 58d žalia
A60: 4.6. | B60: Operacinė pižama ( kelnės + bliuzė) komplektas 60 dydis | C60: 170 | D60: kompl. | E60: 10.5 | F60: 1785 | G60: Operac.pižama 60d žalia.
A61: 4.7. | B61: Operacinė pižama ( kelnės + bliuzė) komplektas 62 dydis | C61: 170 | D61: kompl. | E61: 10.5 | F61: 1785 | G61: Operac.pižama 62d žalia
A62: 4.8. | B62: Operacinis chalatas su tampomu mankietu 54 dydis | C62: 50 | D62: vnt. | E62: 10 | F62: 500 | G62: Oper.chalatas su triotaž..manketu54d žalias
A63: 4.9. | B63: Operacinis chalatas su tampomu mankietu 56 dydis | C63: 150 | D63: vnt. | E63: 10 | F63: 1500 | G63: Oper.chalatas su trikotaž.manketu56d žalias
A64: 4.10. | B64: Operacinis chalatas su tampomu mankietu 58 dydis | C64: 250 | D64: vnt. | E64: 10 | F64: 2500 | G64: Oper.chalatas su trikotaž.manketu 58d žalias
A65: 4.11. | B65: Operacinis chalatas su tampomu mankietu 60 dydis | C65: 170 | D65: vnt. | E65: 10 | F65: 1700 | G65: Oper.chalatas su trikotaž.manketu 60d žalias
A66: 4.12. | B66: Operacinis chalatas su tampomu mankietu 62 dydis | C66: 50 | D66: vnt. | E66: 10 | F66: 500 | G66: Oper.chalatas su trikotaž..manketu62d žalias
E67: Suma be PVM | F67: =IF((SUMPRODUCT(--(F55:F66=""))>0), "", SUM(F55:F66)) -> 20653 | G67: =IF((SUMPRODUCT(--(F55:F66=""))>0), "Neužpildytos visų objektų kainos", "") -> 
E68: PVM suma | F68: 4337.13
E69: Suma su PVM | F69: =IF(ISBLANK(F68), "", SUM(F67:F68)) -> 24990.13
A71: 5. | B71: MAIŠAI SKALBINIAMS
A72: 5.1. | B72: Maišas skalbiniams ( 1,2 x 1,5) m | C72: 20 | D72: vnt. | E72: 3.9 | F72: =IF(ISBLANK(E72),"", PRODUCT(C72,E72)) -> 78 | G72: Maišas skalb.1,2x1,5m baltas
A73: 5.2. | B73: Maišas skalbiniams ( 1,5 x 1,5) m | C73: 20 | D73: vnt. | E73: 4.59 | F73: =IF(ISBLANK(E73),"", PRODUCT(C73,E73)) -> 91.8 | G73: Maišas skalb.1,5x1,5m baltas
E74: Suma be PVM | F74: =IF((SUMPRODUCT(--(F72:F73=""))>0), "", SUM(F72:F73)) -> 169.8 | G74: =IF((SUMPRODUCT(--(F72:F73=""))>0), "Neužpildytos visų objektų kainos", "") -> 
E75: PVM suma | F75: 35.66
E76: Suma su PVM | F76: =IF(ISBLANK(F75), "", SUM(F74:F75)) -> 205.46
A78: 6. | B78: PIŽAMA FLANELINĖ PACIENTAMS
A79: 6.1. | B79: Pižama flanelinė pacientui ( kelnės + švarkas) suaugusiam dydis L 42( EU) | C79: 31 | D79: kompl. | E79: 8.8 | F79: =IF(ISBLANK(E79),"", PRODUCT(C79,E79)) -> 272.8 | G79: Pižama flanelinė pacientui 42 marga
A80: 6.2. | B80: Pižama flanelinė pacientui ( kelnės + švarkas) suaugusiam dydis 3XL 48 (EU) | C80: 31 | D80: kompl. | E80: 8.8 | F80: =IF(ISBLANK(E80),"", PRODUCT(C80,E80)) -> 272.8 | G80: Pižama flanelinė pacientui 48d marga
A81: 6.3. | B81: Pižama flanelinė pacientui ( kelnės + švarkas) suaugusiam dydis 5XL 52 (EU) | C81: 15 | D81: kompl. | E81: 8.8 | F81: =IF(ISBLANK(E81),"", PRODUCT(C81,E81)) -> 132 | G81: Pižama flanelinė pacientui 52d marga
E82: Suma be PVM | F82: =IF((SUMPRODUCT(--(F79:F81=""))>0), "", SUM(F79:F81)) -> 677.6 | G82: =IF((SUMPRODUCT(--(F79:F81=""))>0), "Neužpildytos visų objektų kainos", "") -> 
E83: PVM suma | F83: 142.3
E84: Suma su PVM | F84: =IF(ISBLANK(F83), "", SUM(F82:F83)) -> 819.9
A86: 7. | B86: APATINIAI BALTINIAI PACIENTAMS
A87: 7.1. | B87: Apatiniai pacientų baltiniai su raišteliais, dydis 2XL 46 (EU) | C87: 82 | D87: vnt. | E87: 4.04 | F87: =IF(ISBLANK(E87),"", PRODUCT(C87,E87)) -> 331.28 | G87: Apat.pacientų baltin.su raišt.46d
A88: 7.2. | B88: Apatiniai pacientų baltiniai su raišteliais, dydis 3XL 48 (EU) | C88: 30 | D88: vnt. | E88: 4.04 | F88: 121.2 | G88: Apat.pacientų baltin.su raišt.48d pasteliškai margi
A89: 7.3. | B89: Apatiniai pacientų baltiniai su raišteliais, dydis 5XL 52 (EU) | C89: 20 | D89: vnt. | E89: 4.04 | F89: 80.8 | G89: Apat.pacientų baltin.su raišt.52d pasteliškai margi
A90: 7.4. | B90: Apatiniai pacientų baltiniai su raišteliais, dydis 6XL 54 (EU) | C90: 20 | D90: vnt. | E90: 4.04 | F90: 80.8 | G90: Apat.pacientų balt.su raišt.54d pasteliškai margi
A91: 7.5. | B91: Apatiniai pacientų baltiniai su raišteliais, dydis 7XL 56 (EU) | C91: 10 | D91: vnt. | E91: 4.04 | F91: 40.4 | G91: Apat.pacientų baltin.su raišt.56d pasteliškai margi
A92: 7.6. | B92: Marškiniai operaciniai pacientui ilgi, trumpos rankovės, užpakalinėje dalyje perskelti, surišami nugaroje, dydis 56 | C92: 45 | D92: vnt. | E92: 4.2 | F92: 189 | G92: Maršk.oper.pacientui perskel.užpak.daly,surįšami nugaroje56d pasteliškai margi
A93: 7.7. | B93: Marškiniai operaciniai pacientui ilgi, trumpos rankovės, užpakalinėje dalyje perskelti, surišami nugaroje, dydis 60 | C93: 30 | D93: vnt. | E93: 4.2 | F93: 126 | G93: Maršk.oper.pacientui perskel.užpak.daly,surįšami nugaroje60d pasteliškai margi
E94: Suma be PVM | F94: =IF((SUMPRODUCT(--(F87:F93=""))>0), "", SUM(F87:F93)) -> 969.48 | G94: =IF((SUMPRODUCT(--(F87:F93=""))>0), "Neužpildytos visų objektų kainos", "") -> 
E95: PVM suma | F95: 203.59
E96: Suma su PVM | F96: =IF(ISBLANK(F95), "", SUM(F94:F95)) -> 1173.07
A98: 8. | B98: MEDICININIS DARBO KOSTIUMAS ( kelnės + bliuzė) komplektas
A99: 8.1. | B99: Medicininis darbo kostiumas ( kelnės + bliuzė), dydis S/M 38 (EU) | C99: 10 | D99: kompl. | E99: 10.65 | F99: =IF(ISBLANK(E99),"", PRODUCT(C99,E99)) -> 106.5 | G99: Med.darbo kost.(kelnės+bliuzė) žydras 38d
A100: 8.2. | B100: Medicininis darbo kostiumas ( kelnės + bliuzė), dydis L 42 (EU) | C100: 10 | D100: kompl. | E100: 10.65 | F100: 106.5 | G100: Med.darbo kost.(kelnės+bliuzė) žydras 42d
A101: 8.3. | B101: Medicininis darbo kostiumas ( kelnės + bliuzė), dydis 2XL 46 (EU) | C101: 10 | D101: kompl. | E101: 10.65 | F101: 106.5 | G101: Med.darbo kost.(kelnės+bliuzė) žydras 46d
A102: 8.4. | B102: Medicininis darbo kostiumas ( kelnės + bliuzė), dydis 4XL 50 (EU) | C102: 10 | D102: kompl. | E102: 10.65 | F102: 106.5 | G102: Med.darbo kost.(kelnės+bliuzė) žydras 50d
A103: 8.5. | B103: Medicininis darbo kostiumas ( kelnės + bliuzė), dydis 5XL 52 (EU) | C103: 20 | D103: kompl. | E103: 10.65 | F103: 213 | G103: Med.darbo kost.(kelnės+bliuzė) žydras 52d
A104: 8.6. | B104: Medicininis darbo kostiumas ( kelnės + bliuzė), dydis 6XL 54 (EU) | C104: 20 | D104: kompl. | E104: 10.65 | F104: 213 | G104: Med.darbo kost.(kelnės+bliuzė) žydras54d
E105: Suma be PVM | F105: =IF((SUMPRODUCT(--(F99:F104=""))>0), "", SUM(F99:F104)) -> 852 | G105: =IF((SUMPRODUCT(--(F99:F104=""))>0), "Neužpildytos visų objektų kainos", "") -> 
E106: PVM suma | F106: 178.92
E107: Suma su PVM | F107: =IF(ISBLANK(F106), "", SUM(F105:F106)) -> 1030.92
A109: 9. | B109: LOVOS PATALYNĖ VAIKIŠKA IR PAAUGLIŲ
A110: 9.1. | B110: Užvalkalas antklodei kūdikių ( 1,3 x 1,5 ) m | C110: 30 | D110: vnt. | E110: 4.72 | F110: =IF(ISBLANK(E110),"", PRODUCT(C110,E110)) -> 141.6 | G110: Užvalkalas antkl.kūdikių 1,3x1,5mpasteliškai margas
A111: 9.2. | B111: Užvalkalas antklodei vaikiškas ( 1,3 x 1,3) m | C111: 40 | D111: vnt. | E111: 4.72 | F111: =IF(ISBLANK(E111),"", PRODUCT(C111,E111)) -> 188.8 | G111: Užvalkalas antkl.vaikiškas 1,3x1,3m pasteliškai margas
A112: 9.3. | B112: Užvalkalas antklodei paauglinis ( 1,7 x 1,3) m | C112: 30 | D112: vnt. | E112: 5.83 | F112: =IF(ISBLANK(E112),"", PRODUCT(C112,E112)) -> 174.9 | G112: Užvalkalas antkl.paauglinis 1,7x1,3m pasteliškai margas
E113: Suma be PVM | F113: =IF((SUMPRODUCT(--(F110:F112=""))>0), "", SUM(F110:F112)) -> 505.3 | G113: =IF((SUMPRODUCT(--(F110:F112=""))>0), "Neužpildytos visų objektų kainos", "") -> 
E114: PVM suma | F114: 106.11
E115: Suma su PVM | F115: =IF(ISBLANK(F114), "", SUM(F113:F114)) -> 611.41
A117: 10. | B117: UŽTIESALAS ČIUŽINIUI MEDŽIAGINIS ( 2,20x1,60) m
A118: 10.1. | B118: Užtiesalas čiužiniui medžiaginis ( 2,20 x 1,60) m | C118: 20 | D118: vnt. | F118: =IF(ISBLANK(E118),"", PRODUCT(C118,E118)) -> 
E119: Suma be PVM | F119: =IF(F118="","",SUM(F118:F118)) ->  | G119: =IF(F118="","Neužpildytos visos objektų kainos","") -> Neužpildytos visos objektų kainos
E120: PVM suma
E121: Suma su PVM | F121: =IF(ISBLANK(F120), "", SUM(F119:F120)) -> 

Sheet Subtiekėjai
A2: Subtiekėjai ir jiems perduodama vykdyti pirkimo sutarties dalis:
A4: Eil. Nr | C4: Subtiekėjo pavadinimas | F4: Pirkimo objekto dalies, perduodamos vykdyti subtiekėjui, aprašymas | I4: Procentas perduodamos vykdyti pirkimo objekto dalies nuo pasiūlymo kainos su PVM (pildoma, jei ūkio subjektas vykdys sutartį)
A11: Kartu su pasiūlymu pateikiami šie dokumentai:
A13: Eil.Nr. | B13: Dokumentas | E13: Ar dokumnetas konfidencialus? (Taip/Ne) | G13: Prisegtos bylos (failo) pavadinimas | I13: Paaiškinimas, kokia konkreti informacija dokumente yra konfidenciali
A20: Pasirašydamas šį pasiūlymą, tvirtintu, kad: 1) pasiūlymo dokumentuose pateikti duomenys yra tikri; 2) siūlomas Pirkimo objektas visiškai atitinka Pirkimo dokumentuose nustatytus reikalavimus; 3) sutinku su visomis Pirkimo dokumentuose nustatytomis sąlygomis; 4) pasiūlymas galioja iki termino, nustatyto Pirkimo dokumentuose; 5) mes esame / nesame (nereikalingą išbraukti) laikomi asocijuotais (susijusiais) su Perkančiuoju subjektu pagal Lietuvos Respublikoje galiojančių teisės aktų (Lietuvos Respublikos pelno mokesčio, Lietuvos Respublikos pridėtinės vertės mokesčio ir Lietuvos Respublikos gyventojų pajamų mokesčio įstatymų) nuostatas; 6) savo pasiūlymo galiojimą užtikrinsiu pagal Specialiųjų sąlygų 6.1 punktą (jei taikoma).
A22: Pasiūlymo galiojimo užtikrinimui pateikiame :
A24: (Nurodyti užtikrinimo būdą, dydį, dokumentus)
A26: Pasiūlymas galioja iki termino, nustatyto pirkimo dokumentuose. Pasiūlymo neatskiriama dalis yra (rašoma, jeigu buvo reikalauta prie pasiūlymo pridėti atitinkamą dokumentą)
A30: Tiekėjo arba jo įgalioto asmens pareigų pavadinimas
A33: Pasirašančio asmens vardas ir pavardė
A100: 3478 2019-10-24 14:33:49
